[Event "*** Titled Tuesday Blitz"]
[Site "Chess.com"]
[Date "2020.05.12"]
[Round "1"]
[White "northridgehawk"]
[Black "korbul"]
[Result "0-1"]
[WhiteElo "2234"]
[BlackElo "2568"]
[TimeControl "180+1"]
[EndTime "10:06:50 PDT"]
[Termination "korbul won on time"]

1. e4 {[%clk 0:03:00.9]} 1... c5 {[%clk 0:02:59.6]} 2. Nf3 {[%clk 0:03:00]} 2...
e6 {[%clk 0:03:00.2]} 3. d4 {[%clk 0:03:00.3]} 3... cxd4 {[%clk 0:03:00.5]} 4.
Nxd4 {[%clk 0:03:01.2]} 4... Nf6 {[%clk 0:03:01]} 5. Nc3 {[%clk 0:03:01.4]} 5...
d6 {[%clk 0:03:01.4]} 6. Be3 {[%clk 0:02:59.7]} 6... a6 {[%clk 0:03:01.4]} 7. h3
{[%clk 0:02:58.3]} 7... b5 {[%clk 0:03:01.3]} 8. g4 {[%clk 0:02:57.7]} 8... Bb7
{[%clk 0:03:01.5]} 9. Bg2 {[%clk 0:02:55]} 9... Qc7 {[%clk 0:02:59]} 10. g5
{[%clk 0:02:47.8]} 10... Nfd7 {[%clk 0:02:58.4]} 11. Qe2 {[%clk 0:02:47.9]}
11... Nb6 {[%clk 0:02:58.1]} 12. O-O {[%clk 0:02:46.1]} 12... N8d7 {[%clk
0:02:57.6]} 13. f4 {[%clk 0:02:44.9]} 13... g6 {[%clk 0:02:54.4]} 14. f5 {[%clk
0:02:39.6]} 14... gxf5 {[%clk 0:02:53.5]} 15. exf5 {[%clk 0:02:38.1]} 15... e5
{[%clk 0:02:53.5]} 16. Ne6 {[%clk 0:02:33.5]} 16... fxe6 {[%clk 0:02:53.4]} 17.
fxe6 {[%clk 0:02:30.5]} 17... Nc5 {[%clk 0:02:45.7]} 18. Rf7 {[%clk 0:02:22.2]}
18... Be7 {[%clk 0:02:44.2]} 19. Nxb5 {[%clk 0:02:01.8]} 19... axb5 {[%clk
0:02:32]} 20. Qxb5+ {[%clk 0:02:02.7]} 20... Nbd7 {[%clk 0:02:26.2]} 21. Bxb7
{[%clk 0:01:51.9]} 21... Qxb7 {[%clk 0:02:21.8]} 22. Qf1 {[%clk 0:01:07.5]}
22... Nxe6 {[%clk 0:02:13.4]} 23. Qf5 {[%clk 0:01:01.4]} 23... Ndf8 {[%clk
0:01:36.9]} 24. Rf1 {[%clk 0:00:52.4]} 24... O-O-O {[%clk 0:01:31]} 25. Rd1
{[%clk 0:00:17.4]} 25... Rd7 {[%clk 0:01:16]} 26. Rd3 {[%clk 0:00:13.2]} 26...
Qxb2 {[%clk 0:01:09.8]} 27. Bd2 {[%clk 0:00:09.6]} 27... Qb6+ {[%clk 0:01:06.8]}
28. Kh2 {[%clk 0:00:09.6]} 28... Rc7 {[%clk 0:00:56]} 29. Rxf8+ {[%clk
0:00:08.5]} 29... Rxf8 {[%clk 0:00:54.3]} 30. Qxe6+ {[%clk 0:00:09.4]} 30... Kd8
{[%clk 0:00:52.8]} 31. Qxe5 {[%clk 0:00:04.5]} 31... Qf2+ {[%clk 0:00:50.8]} 32.
Kh1 {[%clk 0:00:03.7]} 32... Qf1+ {[%clk 0:00:49.2]} 33. Kh2 {[%clk 0:00:03.7]}
33... Qxd3 {[%clk 0:00:49]} 34. Qa5 {[%clk 0:00:02.3]} 34... Rf2+ {[%clk
0:00:46.5]} 35. Kg1 {[%clk 0:00:02.5]} 35... Qxd2 {[%clk 0:00:46.7]} 36. Qa8+
{[%clk 0:00:02.4]} 36... Rc8 {[%clk 0:00:46.6]} 37. Qa5+ {[%clk 0:00:01]} 37...
Qxa5 {[%clk 0:00:46]} 0-1

[Event "*** Titled Tuesday Blitz"]
[Site "Chess.com"]
[Date "2020.05.12"]
[Round "1"]
[White "damayito"]
[Black "karinachess1"]
[Result "0-1"]
[WhiteElo "1589"]
[BlackElo "2466"]
[TimeControl "180+1"]
[EndTime "10:06:50 PDT"]
[Termination "karinachess1 won by resignation"]

1. e4 {[%clk 0:03:00.9]} 1... c5 {[%clk 0:02:59]} 2. Nc3 {[%clk 0:03:00]} 2...
Nc6 {[%clk 0:02:57.9]} 3. g3 {[%clk 0:03:00]} 3... g6 {[%clk 0:02:57.6]} 4. Bg2
{[%clk 0:02:59.8]} 4... Bg7 {[%clk 0:02:57.6]} 5. Nf3 {[%clk 0:02:53.6]} 5... e6
{[%clk 0:02:53.4]} 6. O-O {[%clk 0:02:54]} 6... Nge7 {[%clk 0:02:52.9]} 7. d3
{[%clk 0:02:53.3]} 7... d6 {[%clk 0:02:52.4]} 8. Bg5 {[%clk 0:02:53]} 8... h6
{[%clk 0:02:49.4]} 9. Bd2 {[%clk 0:02:52.6]} 9... O-O {[%clk 0:02:49.7]} 10. Qc1
{[%clk 0:02:52.2]} 10... Kh7 {[%clk 0:02:48.5]} 11. Rb1 {[%clk 0:02:52.5]} 11...
Rb8 {[%clk 0:02:47.6]} 12. a4 {[%clk 0:02:48.7]} 12... a6 {[%clk 0:02:47.2]} 13.
h3 {[%clk 0:02:40.5]} 13... b5 {[%clk 0:02:47]} 14. axb5 {[%clk 0:02:39]} 14...
axb5 {[%clk 0:02:47.9]} 15. Nh2 {[%clk 0:02:39]} 15... Nd4 {[%clk 0:02:41.3]}
16. Re1 {[%clk 0:02:31.2]} 16... b4 {[%clk 0:02:35.9]} 17. Ne2 {[%clk
0:02:29.5]} 17... Nec6 {[%clk 0:02:35.7]} 18. Ng4 {[%clk 0:02:26.1]} 18... h5
{[%clk 0:02:32.3]} 19. Nh2 {[%clk 0:02:06.1]} 19... Nxe2+ {[%clk 0:02:30.6]} 20.
Rxe2 {[%clk 0:02:05.6]} 20... Nd4 {[%clk 0:02:31.2]} 21. Re1 {[%clk 0:02:06.1]}
21... Ba6 {[%clk 0:02:23.1]} 22. Nf3 {[%clk 0:02:03.5]} 22... b3 {[%clk
0:02:18.2]} 23. Nxd4 {[%clk 0:01:52.9]} 23... cxd4 {[%clk 0:02:18.3]} 24. Bf1
{[%clk 0:01:41.5]} 24... Rc8 {[%clk 0:02:03.2]} 25. c3 {[%clk 0:01:31.1]} 25...
Qb6 {[%clk 0:01:59.3]} 26. Qd1 {[%clk 0:01:23.5]} 26... dxc3 {[%clk 0:01:16.9]}
27. Bxc3 {[%clk 0:01:22.7]} 27... Bxc3 {[%clk 0:01:09.2]} 28. bxc3 {[%clk
0:01:21.7]} 28... Rxc3 {[%clk 0:01:10.1]} 29. Qd2 {[%clk 0:01:16]} 29... Qd4
{[%clk 0:01:09.6]} 30. Red1 {[%clk 0:01:09.5]} 30... Rfc8 {[%clk 0:01:08.7]} 31.
g4 {[%clk 0:01:05.3]} 31... hxg4 {[%clk 0:01:02.3]} 32. hxg4 {[%clk 0:01:03.9]}
32... Kg7 {[%clk 0:01:01.6]} 33. g5 {[%clk 0:00:39.3]} 33... Rc2 {[%clk
0:00:58.6]} 34. Qf4 {[%clk 0:00:38.9]} 34... b2 {[%clk 0:00:57.5]} 35. Qh4
{[%clk 0:00:37.6]} 35... Rc1 {[%clk 0:00:46.2]} 36. Qh6+ {[%clk 0:00:36.5]}
36... Kg8 {[%clk 0:00:46]} 37. Be2 {[%clk 0:00:28.9]} 37... Rxd1+ {[%clk
0:00:42.9]} 38. Rxd1 {[%clk 0:00:25.2]} 38... Rc1 {[%clk 0:00:41.3]} 0-1

[Event "*** Titled Tuesday Blitz"]
[Site "Chess.com"]
[Date "2020.05.12"]
[Round "1"]
[White "Kostya26"]
[Black "bancsoo"]
[Result "0-1"]
[WhiteElo "2398"]
[BlackElo "2752"]
[TimeControl "180+1"]
[EndTime "10:06:51 PDT"]
[Termination "bancsoo won by resignation"]

1. d4 {[%clk 0:03:00.1]} 1... d5 {[%clk 0:02:58.7]} 2. Nf3 {[%clk 0:02:58.7]}
2... Nf6 {[%clk 0:02:58.7]} 3. Bf4 {[%clk 0:02:57.3]} 3... c5 {[%clk 0:02:54.8]}
4. e3 {[%clk 0:02:54.4]} 4... Nc6 {[%clk 0:02:54.1]} 5. c3 {[%clk 0:02:54.9]}
5... e6 {[%clk 0:02:53.9]} 6. Bd3 {[%clk 0:02:54.5]} 6... Bd6 {[%clk 0:02:51.9]}
7. Bg3 {[%clk 0:02:54.7]} 7... O-O {[%clk 0:02:47.6]} 8. Qe2 {[%clk 0:02:52.5]}
8... Qe7 {[%clk 0:02:44.5]} 9. Ne5 {[%clk 0:02:51.8]} 9... Nd7 {[%clk 0:02:44]}
10. f4 {[%clk 0:02:42.5]} 10... f6 {[%clk 0:02:23.5]} 11. Bxh7+ {[%clk
0:02:05.4]} 11... Kxh7 {[%clk 0:02:23.5]} 12. Qh5+ {[%clk 0:02:05.9]} 12... Kg8
{[%clk 0:02:24.1]} 13. Ng6 {[%clk 0:02:05.3]} 13... Qe8 {[%clk 0:02:24.2]} 14.
f5 {[%clk 0:01:50.4]} 14... Bxg3+ {[%clk 0:01:58.5]} 15. hxg3 {[%clk 0:01:49.1]}
15... exf5 {[%clk 0:01:59]} 16. Nxf8 {[%clk 0:01:12.3]} 16... Qxh5 {[%clk
0:01:51.5]} 17. Rxh5 {[%clk 0:01:13.2]} 17... Nxf8 {[%clk 0:01:51.9]} 18. dxc5
{[%clk 0:01:12.4]} 18... a5 {[%clk 0:01:42.9]} 19. Nd2 {[%clk 0:01:11.4]} 19...
Ne5 {[%clk 0:01:28]} 20. O-O-O {[%clk 0:01:01.9]} 20... Nd3+ {[%clk 0:01:22.9]}
21. Kc2 {[%clk 0:00:55.7]} 21... Nxc5 {[%clk 0:01:23.1]} 22. Nf3 {[%clk
0:00:55.8]} 22... Be6 {[%clk 0:01:16.6]} 23. Nd4 {[%clk 0:00:55]} 23... Bd7
{[%clk 0:00:57.5]} 24. Nxf5 {[%clk 0:00:37.4]} 24... g6 {[%clk 0:00:49.3]} 25.
Nh6+ {[%clk 0:00:20.7]} 25... Kg7 {[%clk 0:00:48.1]} 26. Rhxd5 {[%clk
0:00:21.6]} 26... b6 {[%clk 0:00:39.1]} 27. b4 {[%clk 0:00:17.3]} 27... axb4
{[%clk 0:00:36.7]} 28. cxb4 {[%clk 0:00:18.2]} 28... Ba4+ {[%clk 0:00:36.9]} 29.
Kb2 {[%clk 0:00:16.1]} 29... Bxd1 {[%clk 0:00:37]} 30. bxc5 {[%clk 0:00:17]}
30... Be2 {[%clk 0:00:32.3]} 31. Rd2 {[%clk 0:00:14.3]} 31... Bc4 {[%clk
0:00:29.4]} 32. Ng4 {[%clk 0:00:13.3]} 32... Rxa2+ {[%clk 0:00:29.7]} 33. Kc3
{[%clk 0:00:13.8]} 33... Rxd2 {[%clk 0:00:29.6]} 34. Kxd2 {[%clk 0:00:14.7]}
34... bxc5 {[%clk 0:00:30.2]} 35. Kc3 {[%clk 0:00:13.7]} 35... Bd5 {[%clk
0:00:30.5]} 36. Nf2 {[%clk 0:00:12.7]} 36... Bxg2 {[%clk 0:00:30.6]} 37. Nd3
{[%clk 0:00:13.3]} 37... Nd7 {[%clk 0:00:30.1]} 0-1

[Event "*** Titled Tuesday Blitz"]
[Site "Chess.com"]
[Date "2020.05.12"]
[Round "1"]
[White "Efremov_Vlad"]
[Black "LuckSlayeer"]
[Result "1-0"]
[WhiteElo "2135"]
[BlackElo "2493"]
[TimeControl "180+1"]
[EndTime "10:06:52 PDT"]
[Termination "Efremov_Vlad won on time"]

1. c4 {[%clk 0:03:00.1]} 1... Nf6 {[%clk 0:02:56.1]} 2. d4 {[%clk 0:02:59.4]}
2... e6 {[%clk 0:02:54.7]} 3. Nf3 {[%clk 0:02:59.3]} 3... c5 {[%clk 0:02:53.7]}
4. d5 {[%clk 0:02:58.9]} 4... b5 {[%clk 0:02:53.4]} 5. dxe6 {[%clk 0:02:56.4]}
5... fxe6 {[%clk 0:02:54.3]} 6. e4 {[%clk 0:02:53]} 6... Nxe4 {[%clk 0:02:39.9]}
7. Bd3 {[%clk 0:02:52.1]} 7... Nf6 {[%clk 0:02:17.7]} 8. Ng5 {[%clk 0:02:51.2]}
8... Qe7 {[%clk 0:01:40.5]} 9. Bxh7 {[%clk 0:02:40.6]} 9... Rxh7 {[%clk
0:00:54.6]} 10. Nxh7 {[%clk 0:02:36.3]} 10... bxc4 {[%clk 0:00:37.7]} 11. Bg5
{[%clk 0:01:57.2]} 11... Qf7 {[%clk 0:00:30.6]} 12. Nxf8 {[%clk 0:01:56.4]}
12... Qxf8 {[%clk 0:00:27.5]} 13. O-O {[%clk 0:01:49.5]} 13... Nc6 {[%clk
0:00:25]} 14. Nc3 {[%clk 0:01:34.6]} 14... Nd4 {[%clk 0:00:17.5]} 15. Be3 {[%clk
0:01:07.8]} 15... e5 {[%clk 0:00:13.9]} 16. f4 {[%clk 0:00:46]} 16... d6 {[%clk
0:00:13.3]} 17. fxe5 {[%clk 0:00:45.4]} 17... dxe5 {[%clk 0:00:13.2]} 18. b3
{[%clk 0:00:20.9]} 18... cxb3 {[%clk 0:00:05.5]} 19. axb3 {[%clk 0:00:21]} 19...
Qd6 {[%clk 0:00:05.6]} 20. Bxd4 {[%clk 0:00:15.9]} 20... exd4 {[%clk 0:00:03.8]}
21. Qf3 {[%clk 0:00:15.6]} 21... Rb8 {[%clk 0:00:03]} 22. Rae1+ {[%clk
0:00:14.4]} 22... Kf7 {[%clk 0:00:02.6]} 23. Ne4 {[%clk 0:00:14.3]} 23... Qe6
{[%clk 0:00:02.5]} 24. Nxf6 {[%clk 0:00:14.1]} 24... Qxf6 {[%clk 0:00:02.5]} 25.
Qe4 {[%clk 0:00:14]} 1-0

[Event "*** Titled Tuesday Blitz"]
[Site "Chess.com"]
[Date "2020.05.12"]
[Round "1"]
[White "tamarozi99"]
[Black "TudorAnton"]
[Result "0-1"]
[WhiteElo "1954"]
[BlackElo "2476"]
[TimeControl "180+1"]
[EndTime "10:06:54 PDT"]
[Termination "TudorAnton won by resignation"]

1. e4 {[%clk 0:03:00.3]} 1... e5 {[%clk 0:02:59.3]} 2. Nf3 {[%clk 0:02:59.7]}
2... b6 {[%clk 0:02:59.5]} 3. Bc4 {[%clk 0:02:53.3]} 3... Qe7 {[%clk 0:02:49.9]}
4. O-O {[%clk 0:02:50.2]} 4... Bb7 {[%clk 0:02:48.4]} 5. Re1 {[%clk 0:02:49.6]}
5... Nc6 {[%clk 0:02:46.5]} 6. c3 {[%clk 0:02:49.6]} 6... O-O-O {[%clk
0:02:45.4]} 7. b4 {[%clk 0:02:44.3]} 7... Kb8 {[%clk 0:02:45.2]} 8. a4 {[%clk
0:02:43.1]} 8... a5 {[%clk 0:02:44.3]} 9. b5 {[%clk 0:02:31.3]} 9... Na7 {[%clk
0:02:39.9]} 10. Ba3 {[%clk 0:02:27.7]} 10... Qe8 {[%clk 0:02:30.6]} 11. Bxf8
{[%clk 0:02:25.6]} 11... Qxf8 {[%clk 0:02:31.5]} 12. Nxe5 {[%clk 0:02:23.8]}
12... Nh6 {[%clk 0:02:27.8]} 13. d4 {[%clk 0:02:17.7]} 13... d6 {[%clk
0:02:25.7]} 14. Nf3 {[%clk 0:02:14.8]} 14... Nc8 {[%clk 0:02:24.8]} 15. Bd5
{[%clk 0:02:06.5]} 15... Bxd5 {[%clk 0:02:11.3]} 16. exd5 {[%clk 0:02:07.4]}
16... Ne7 {[%clk 0:02:09]} 17. c4 {[%clk 0:02:07.5]} 17... Ng6 {[%clk
0:02:09.4]} 18. Nc3 {[%clk 0:01:59.8]} 18... Re8 {[%clk 0:02:09.3]} 19. Rxe8+
{[%clk 0:01:57.6]} 19... Qxe8 {[%clk 0:02:10.2]} 20. Qe2 {[%clk 0:01:57.7]}
20... Qxe2 {[%clk 0:02:09.3]} 21. Nxe2 {[%clk 0:01:57.4]} 21... Re8 {[%clk
0:02:09.9]} 22. Kf1 {[%clk 0:01:56.8]} 22... Nf5 {[%clk 0:02:08.6]} 23. h3
{[%clk 0:01:52.9]} 23... f6 {[%clk 0:02:07.9]} 24. Rc1 {[%clk 0:01:51.7]} 24...
h5 {[%clk 0:02:02.7]} 25. c5 {[%clk 0:01:46.7]} 25... Kb7 {[%clk 0:01:58.9]} 26.
cxb6 {[%clk 0:01:39.7]} 26... cxb6 {[%clk 0:01:58.6]} 27. Rc6 {[%clk 0:01:25.5]}
27... Nge7 {[%clk 0:01:57.1]} 28. g4 {[%clk 0:01:22.3]} 28... hxg4 {[%clk
0:01:52.2]} 29. hxg4 {[%clk 0:01:22]} 29... Nh6 {[%clk 0:01:51.6]} 30. g5 {[%clk
0:01:20.3]} 30... Nhf5 {[%clk 0:01:44.6]} 31. gxf6 {[%clk 0:01:19.4]} 31... gxf6
{[%clk 0:01:45.5]} 32. Nf4 {[%clk 0:01:12.2]} 32... Nxc6 {[%clk 0:01:44.8]} 33.
dxc6+ {[%clk 0:01:12.3]} 33... Ka7 {[%clk 0:01:45.4]} 34. d5 {[%clk 0:01:10.2]}
34... Re4 {[%clk 0:01:43.6]} 35. Ne6 {[%clk 0:01:08.7]} 35... Rxa4 {[%clk
0:01:43.4]} 36. Nd8 {[%clk 0:00:52.2]} 36... Rc4 {[%clk 0:01:38]} 37. Nd2 {[%clk
0:00:48.7]} 37... Rc5 {[%clk 0:01:36.7]} 38. Ne4 {[%clk 0:00:41]} 38... Rc2
{[%clk 0:01:17.8]} 39. Nxf6 {[%clk 0:00:35.1]} 39... a4 {[%clk 0:01:17.2]} 40.
Ne8 {[%clk 0:00:29.2]} 40... a3 {[%clk 0:01:16.1]} 41. c7 {[%clk 0:00:29.5]}
41... Rxc7 {[%clk 0:01:10]} 42. Nxc7 {[%clk 0:00:29.6]} 42... a2 {[%clk
0:01:10.5]} 43. Nc6+ {[%clk 0:00:28.8]} 43... Kb7 {[%clk 0:01:10.2]} 44. Ne6
{[%clk 0:00:16.9]} 44... a1=Q+ {[%clk 0:01:06.7]} 45. Kg2 {[%clk 0:00:17.8]}
45... Qd1 {[%clk 0:01:02.1]} 46. Ncd8+ {[%clk 0:00:11.7]} 46... Kc8 {[%clk
0:01:01.3]} 47. Nf7 {[%clk 0:00:10.3]} 47... Qxd5+ {[%clk 0:01:00.7]} 0-1

[Event "*** Titled Tuesday Blitz"]
[Site "Chess.com"]
[Date "2020.05.12"]
[Round "1"]
[White "JoachimMouhamad"]
[Black "AliKa2810"]
[Result "0-1"]
[WhiteElo "2209"]
[BlackElo "2551"]
[TimeControl "180+1"]
[EndTime "10:06:56 PDT"]
[Termination "AliKa2810 won by resignation"]

1. e4 {[%clk 0:02:58.1]} 1... e6 {[%clk 0:02:59.3]} 2. d4 {[%clk 0:02:55.6]}
2... d5 {[%clk 0:03:00.2]} 3. Nc3 {[%clk 0:02:53.5]} 3... Nf6 {[%clk 0:02:59.5]}
4. e5 {[%clk 0:02:50]} 4... Nfd7 {[%clk 0:02:57.8]} 5. f4 {[%clk 0:02:49.3]}
5... c5 {[%clk 0:02:58.3]} 6. Nf3 {[%clk 0:02:49]} 6... Be7 {[%clk 0:02:56.5]}
7. Be3 {[%clk 0:02:46.7]} 7... b6 {[%clk 0:02:52.9]} 8. Qd2 {[%clk 0:02:28.3]}
8... Bb7 {[%clk 0:02:52.3]} 9. Nd1 {[%clk 0:02:21.7]} 9... O-O {[%clk
0:02:46.5]} 10. c3 {[%clk 0:02:21.5]} 10... f5 {[%clk 0:02:33.5]} 11. Bd3 {[%clk
0:02:04.5]} 11... Ba6 {[%clk 0:02:25.2]} 12. Nf2 {[%clk 0:01:58.1]} 12... Bxd3
{[%clk 0:02:22.5]} 13. Qxd3 {[%clk 0:01:56.4]} 13... Nc6 {[%clk 0:02:18.5]} 14.
O-O {[%clk 0:01:46.5]} 14... Rc8 {[%clk 0:02:16.4]} 15. Kh1 {[%clk 0:01:40.8]}
15... cxd4 {[%clk 0:02:15.5]} 16. Bxd4 {[%clk 0:01:24.6]} 16... Nc5 {[%clk
0:02:13.8]} 17. Bxc5 {[%clk 0:01:20.6]} 17... Bxc5 {[%clk 0:02:00.5]} 18. a3
{[%clk 0:01:13.4]} 18... Qd7 {[%clk 0:01:42.1]} 19. Nd4 {[%clk 0:01:11.9]} 19...
Bxd4 {[%clk 0:01:30]} 20. cxd4 {[%clk 0:01:11.1]} 20... Ne7 {[%clk 0:01:30.4]}
21. Rac1 {[%clk 0:01:08.2]} 21... Qa4 {[%clk 0:01:28.7]} 22. Qd2 {[%clk
0:00:52.2]} 22... h6 {[%clk 0:01:25.6]} 23. h3 {[%clk 0:00:44.6]} 23... Rc4
{[%clk 0:01:22.4]} 24. Rxc4 {[%clk 0:00:43.2]} 24... dxc4 {[%clk 0:01:19]} 25.
g4 {[%clk 0:00:40.5]} 25... fxg4 {[%clk 0:01:11.3]} 26. hxg4 {[%clk 0:00:40.5]}
26... Qc6+ {[%clk 0:01:08.1]} 27. Kh2 {[%clk 0:00:37.2]} 27... Qf3 {[%clk
0:01:07.4]} 28. f5 {[%clk 0:00:14.2]} 28... exf5 {[%clk 0:01:05.1]} 29. Qc3
{[%clk 0:00:10]} 29... Qe2 {[%clk 0:01:00.5]} 30. Qe1 {[%clk 0:00:09.6]} 30...
Qf3 {[%clk 0:00:46.1]} 31. Qc3 {[%clk 0:00:08.5]} 31... Qxc3 {[%clk 0:00:45]}
32. bxc3 {[%clk 0:00:08.4]} 32... fxg4 {[%clk 0:00:45.5]} 33. Kg3 {[%clk
0:00:07.9]} 33... Nd5 {[%clk 0:00:39.5]} 34. Rc1 {[%clk 0:00:04.4]} 34... Rf3+
{[%clk 0:00:38.3]} 35. Kg2 {[%clk 0:00:04.3]} 35... Nf4+ {[%clk 0:00:38]} 36.
Kg1 {[%clk 0:00:03.2]} 36... Ne2+ {[%clk 0:00:37.9]} 0-1

[Event "*** Titled Tuesday Blitz"]
[Site "Chess.com"]
[Date "2020.05.12"]
[Round "1"]
[White "axvesik"]
[Black "Ashedu66"]
[Result "1-0"]
[WhiteElo "2511"]
[BlackElo "2131"]
[TimeControl "180+1"]
[EndTime "10:06:56 PDT"]
[Termination "axvesik won by resignation"]

1. e4 {[%clk 0:02:55.4]} 1... e5 {[%clk 0:02:59.7]} 2. Nf3 {[%clk 0:02:54.5]}
2... Nc6 {[%clk 0:02:59.8]} 3. Bc4 {[%clk 0:02:49.6]} 3... Bc5 {[%clk
0:02:59.2]} 4. O-O {[%clk 0:02:47.7]} 4... Nf6 {[%clk 0:02:58.5]} 5. d3 {[%clk
0:02:42.9]} 5... a6 {[%clk 0:02:56.2]} 6. c3 {[%clk 0:02:37.8]} 6... Ba7 {[%clk
0:02:55.5]} 7. Nbd2 {[%clk 0:02:33]} 7... O-O {[%clk 0:02:54.2]} 8. h3 {[%clk
0:02:29.7]} 8... b5 {[%clk 0:02:27.8]} 9. Bb3 {[%clk 0:02:27.8]} 9... d5 {[%clk
0:02:27.3]} 10. exd5 {[%clk 0:02:18.9]} 10... Nxd5 {[%clk 0:02:26.4]} 11. Ne4
{[%clk 0:02:15.4]} 11... f6 {[%clk 0:02:15]} 12. a4 {[%clk 0:01:44.2]} 12... Kh8
{[%clk 0:02:11.7]} 13. Re1 {[%clk 0:01:31.9]} 13... Qd6 {[%clk 0:01:35.9]} 14.
Ng3 {[%clk 0:01:14.3]} 14... Be6 {[%clk 0:01:11.6]} 15. Nh4 {[%clk 0:01:10.9]}
15... Nce7 {[%clk 0:01:02]} 16. Qe2 {[%clk 0:01:03.3]} 16... g5 {[%clk
0:00:44.8]} 17. Nf3 {[%clk 0:00:54.1]} 17... Nf4 {[%clk 0:00:41.3]} 18. Bxf4
{[%clk 0:00:46.2]} 18... gxf4 {[%clk 0:00:26.8]} 19. Ne4 {[%clk 0:00:41.5]}
19... Qd7 {[%clk 0:00:25.2]} 20. Nxf6 {[%clk 0:00:29.3]} 20... Rxf6 {[%clk
0:00:17.7]} 21. Qxe5 {[%clk 0:00:27.9]} 21... Ng8 {[%clk 0:00:14.8]} 22. Bxe6
{[%clk 0:00:27.3]} 22... Qg7 {[%clk 0:00:11.9]} 23. d4 {[%clk 0:00:25.7]} 23...
Re8 {[%clk 0:00:11]} 24. d5 {[%clk 0:00:25.8]} 24... Rg6 {[%clk 0:00:10.1]} 25.
Qxg7+ {[%clk 0:00:25]} 25... Rxg7 {[%clk 0:00:09.7]} 26. axb5 {[%clk 0:00:24.2]}
26... Bb6 {[%clk 0:00:07.9]} 27. bxa6 {[%clk 0:00:24]} 27... Nf6 {[%clk
0:00:07.9]} 28. Ne5 {[%clk 0:00:22.8]} 28... f3 {[%clk 0:00:05.5]} 29. g4 {[%clk
0:00:20.6]} 29... Nh5 {[%clk 0:00:04.5]} 30. Nf7+ {[%clk 0:00:20.6]} 30... Rxf7
{[%clk 0:00:03.6]} 31. Bxf7 {[%clk 0:00:21]} 31... Rf8 {[%clk 0:00:03.8]} 32.
Bxh5 {[%clk 0:00:20.7]} 1-0

[Event "*** Titled Tuesday Blitz"]
[Site "Chess.com"]
[Date "2020.05.12"]
[Round "1"]
[White "yobdc"]
[Black "witcher8"]
[Result "1-0"]
[WhiteElo "1781"]
[BlackElo "2426"]
[TimeControl "180+1"]
[EndTime "10:06:59 PDT"]
[Termination "yobdc won by checkmate"]

1. e4 {[%clk 0:02:51.2]} 1... c6 {[%clk 0:02:59.5]} 2. c4 {[%clk 0:02:45.6]}
2... d5 {[%clk 0:03:00.4]} 3. exd5 {[%clk 0:02:45.6]} 3... cxd5 {[%clk 0:03:00]}
4. cxd5 {[%clk 0:02:45.9]} 4... Nf6 {[%clk 0:02:59]} 5. Qa4+ {[%clk 0:02:45.8]}
5... Nbd7 {[%clk 0:02:46.4]} 6. Nc3 {[%clk 0:02:44.4]} 6... g6 {[%clk
0:02:45.9]} 7. Nf3 {[%clk 0:02:42.2]} 7... Bg7 {[%clk 0:02:43.8]} 8. Bc4 {[%clk
0:02:42.1]} 8... O-O {[%clk 0:02:40.4]} 9. d3 {[%clk 0:02:35.1]} 9... a6 {[%clk
0:02:40.2]} 10. Qa3 {[%clk 0:02:34.8]} 10... b6 {[%clk 0:02:38.9]} 11. O-O
{[%clk 0:02:34]} 11... Bb7 {[%clk 0:02:38.9]} 12. Bg5 {[%clk 0:02:34]} 12... Re8
{[%clk 0:02:04.5]} 13. Rfe1 {[%clk 0:02:33.4]} 13... b5 {[%clk 0:02:00.8]} 14.
Bb3 {[%clk 0:02:33.1]} 14... Nb6 {[%clk 0:01:56.8]} 15. Re2 {[%clk 0:01:26.8]}
15... Nfxd5 {[%clk 0:01:53.9]} 16. Nxd5 {[%clk 0:01:25.8]} 16... Nxd5 {[%clk
0:01:53.4]} 17. Rae1 {[%clk 0:01:23.1]} 17... f6 {[%clk 0:01:07.2]} 18. Bd2
{[%clk 0:01:19.8]} 18... e5 {[%clk 0:01:03.6]} 19. d4 {[%clk 0:01:12.7]} 19...
Kh8 {[%clk 0:00:53.1]} 20. dxe5 {[%clk 0:01:08.3]} 20... b4 {[%clk 0:00:23.5]}
21. Bxb4 {[%clk 0:01:04.4]} 21... Nxb4 {[%clk 0:00:21.9]} 22. Qxb4 {[%clk
0:01:02.5]} 22... Bxf3 {[%clk 0:00:21.9]} 23. gxf3 {[%clk 0:00:58.7]} 23... Rxe5
{[%clk 0:00:20.7]} 24. Rxe5 {[%clk 0:00:57.9]} 24... fxe5 {[%clk 0:00:21.6]} 25.
Qe4 {[%clk 0:00:48.3]} 25... Rc8 {[%clk 0:00:20.6]} 26. Rd1 {[%clk 0:00:42.9]}
26... Qb6 {[%clk 0:00:18.4]} 27. Rd7 {[%clk 0:00:38]} 27... Qf6 {[%clk
0:00:15.1]} 28. h4 {[%clk 0:00:37.1]} 28... h5 {[%clk 0:00:12.6]} 29. Rf7 {[%clk
0:00:35.1]} 29... Qd6 {[%clk 0:00:10.1]} 30. Kg2 {[%clk 0:00:34.6]} 30... Rc1
{[%clk 0:00:08.9]} 31. Qa8+ {[%clk 0:00:31.8]} 31... Kh7 {[%clk 0:00:08.1]} 32.
Rxg7+ {[%clk 0:00:25.7]} 32... Kxg7 {[%clk 0:00:07.9]} 33. Qg8+ {[%clk 0:00:24]}
33... Kf6 {[%clk 0:00:03.4]} 34. Qf7# {[%clk 0:00:23.4]} 1-0